bitfinex/quotes_ETHUSD_20251017
["timestamp","ask_amount","ask_price","bid_price","bid_amount"]
[1760680543846,0.4306,3907.2,3907.1,0.001]
[1760680544135,2.19059221,3907.2,3907.1,0.001]
[1760680544447,2.82419221,3907.2,3907.1,0.001]
[1760680545267,0.66559221,3907.2,3907.1,0.001]
[1760680545440,0.6336,3907.2,3907.1,0.001]
[1760680546177,1.0642,3907.2,3907.1,0.001]
[1760680546336,1.95397988,3907.2,3907.1,0.001]
[1760680547450,1.0642,3907.2,3907.1,0.001]
[1760680547934,0.40149741,3907.4,3907.2,2.55937755]
[1760680548273,0.1272,3907.6,3907.2,2.55937755]
[1760680548659,0.1272,3907.6,3907.1,0.001]
[1760680548975,0.1272,3907.6,3907.5,2.55918106]
[1760680551471,0.002,3907.9,3907.7,2.55902298]
[1760680551783,0.40343825,3907.9,3907.6,2.55906835]
[1760680553278,0.40343825,3907.9,3907.7,2.55902385]
[1760680554357,0.40343825,3907.9,3907.8,2.55898459]
[1760680554757,0.40343825,3907.9,3907.5,2.55915809]
[1760680555065,2.81593825,3907.9,3907.3,0.1272]
[1760680555270,2.36503825,3907.9,3907.5,2.55915907]
[1760680555449,2.13143825,3907.9,3907.5,2.55915907]
[1760680555774,0.40343825,3907.9,3907.3,0.1272]
[1760680555955,0.40343825,3907.9,3907.7,2.55898581]
[1760680556345,0.40343825,3907.9,3907.8,2.55898459]
[1760680556580,0.40343825,3907.9,3907.8,3.07078163]
[1760680557671,0.40343825,3907.9,3907.8,2.55898459]
[1760680559080,0.002,3907.9,3907.8,2.55898459]
[1760680559388,0.002,3907.9,3907.7,0.1272]
[1760680559770,0.002,3907.9,3907.7,2.68623701]
[1760680560169,0.1292,3907.9,3907.3,0.1272]
[1760680560812,0.002,3907.9,3907.8,2.55898459]
[1760680561369,0.002,3907.9,3907.7,2.55903915]
[1760680561673,0.002,3907.9,3907.5,0.1272]
[1760680561674,0.002,3907.9,3907.8,2.55898459]
[1760680565211,0.002,3907.9,3907.8,3.10414395]
[1760680565372,0.002,3907.9,3907.8,3.43764395]
[1760680565919,0.002,3907.9,3907.8,3.45043033]
[1760680566302,0.002,3907.9,3907.8,3.32323033]
[1760680566503,0.002,3907.9,3907.8,3.45043033]
[1760680567323,1e-08,3908.1,3908.0,2.55885363]
[1760680567492,1e-08,3908.1,3908.0,8.95915516]
[1760680567684,1e-08,3908.1,3908.0,9.15267206]
[1760680569993,1e-08,3908.1,3908.0,3.48056203]
[1760680572624,1e-08,3908.1,3908.0,3.27426203]
[1760680574549,1e-08,3908.1,3908.0,2.55885363]
[1760680574550,0.46830001,3908.1,3908.0,2.55885363]
[1760680576243,1e-08,3908.1,3908.0,2.55885363]
[1760680580869,1e-08,3908.1,3908.0,2.76515363]
[1760680581803,1e-08,3908.1,3908.0,2.55885363]
[1760680582003,1e-08,3908.1,3908.0,3.07073429]
[1760680584474,1e-08,3908.1,3908.0,3.19793429]
[1760680587619,1e-08,3908.1,3908.0,2.68605363]
[1760680587819,0.44440001,3908.1,3908.0,2.68605363]
[1760680588381,0.44440001,3908.1,3908.0,0.1272]
[1760680588716,0.44440001,3908.1,3908.0,2.55885363]
[1760680589280,0.44440001,3908.1,3908.0,2.55985363]
[1760680593596,1e-08,3908.1,3908.0,3.21175551]
[1760680598333,1e-08,3908.1,3908.0,3.43083861]
[1760680598496,1e-08,3908.1,3908.0,3.41805551]
[1760680598898,1e-08,3908.1,3908.0,3.43083861]
[1760680599098,1e-08,3908.1,3908.0,3.41805551]
[1760680599438,1e-08,3908.1,3908.0,3.21175551]
[1760680599645,1e-08,3908.1,3908.0,2.68705363]
[1760680601208,1e-08,3908.1,3908.0,7.62917851]
[1760680601417,1e-08,3908.1,3908.0,2.68705363]
[1760680604644,1e-08,3908.1,3908.0,2.89335363]
[1760680605530,1e-08,3908.1,3908.0,2.68705363]
[1760680606133,1e-08,3908.1,3908.0,3.70468969]
[1760680606979,1e-08,3908.1,3908.0,3.92377279]
[1760680608540,1e-08,3908.5,3908.4,2.55859175]
[1760680608854,1e-08,3908.5,3908.4,2.68579175]
[1760680609055,1e-08,3908.5,3908.4,3.45850808]
[1760680611027,0.44440001,3908.5,3908.4,3.45850808]
[1760680611270,0.44440001,3908.5,3908.4,2.68579175]
[1760680612125,1e-08,3908.5,3908.4,2.68579175]
[1760680612435,1e-08,3908.5,3908.4,2.6985683]
[1760680612768,1e-08,3908.5,3908.4,2.68579175]
[1760680613139,1e-08,3908.5,3908.4,7.42161008]
[1760680613326,1e-08,3908.5,3908.4,3.68382089]
[1760680617575,1e-08,3908.5,3908.4,8.27966267]
[1760680617929,1e-08,3908.5,3908.4,3.55662089]
[1760680618841,0.47130001,3908.5,3908.4,3.55662089]
[1760680619143,0.47130001,3908.5,3908.4,2.55859175]
[1760680620229,1e-08,3908.5,3908.4,2.55859175]
[1760680620434,1e-08,3908.5,3908.4,7.28163353]
[1760680620629,1e-08,3908.5,3908.4,2.55859175]
[1760680620842,0.47130001,3908.5,3908.4,2.55859175]
[1760680621625,0.47130001,3908.5,3908.0,0.001]
[1760680621979,1e-08,3908.5,3908.0,0.001]
[1760680622285,0.4442,3908.4,3908.0,0.001]
[1760680622436,4.72304178,3908.2,3908.0,0.001]
[1760680622841,0.4442,3908.1,3908.0,0.001]
[1760680623479,0.4442,3908.1,3908.0,2.55985363]
[1760680623688,1e-08,3908.5,3908.3,2.55865721]
[1760680623887,1e-08,3908.5,3908.0,2.55985363]
[1760680623888,1e-08,3908.5,3908.2,2.55872268]
[1760680624182,1e-08,3908.5,3908.4,2.55859175]
[1760680624787,0.44420001,3908.5,3908.4,2.55859175]
[1760680625088,1e-08,3908.5,3908.4,2.55859175]
[1760680625244,1e-08,3908.5,3908.4,3.07042319]
[1760680626039,0.44420001,3908.5,3908.4,3.07042319]
[1760680626297,0.44420001,3908.5,3908.4,2.55859175]
[1760680627651,0.44420001,3908.5,3908.4,2.68579175]
[1760680628178,5.16724179,3908.5,3908.1,0.001]
[1760680628474,0.03198239,3908.4,3908.1,0.001]
[1760680628681,0.4442,3908.4,3908.2,2.55866904]
[1760680628863,1e-08,3908.5,3908.3,2.55865721]
[1760680629180,0.4442,3908.4,3908.3,2.55865721]
[1760680631799,0.4442,3908.4,3908.2,0.1272]
[1760680632096,1e-08,3908.5,3908.4,2.55859175]
[1760680632392,1e-08,3908.5,3908.2,2.68586915]
[1760680632873,0.4442,3908.4,3908.2,2.68586915]
[1760680633081,1e-08,3908.5,3908.3,2.55864046]
[1760680633390,1e-08,3908.5,3908.4,2.55859175]
[1760680633688,1e-08,3908.5,3908.3,2.55864448]
[1760680634174,1e-08,3908.5,3908.2,0.1272]
[1760680634379,0.4442,3908.4,3908.3,2.55865721]
[1760680635395,0.4442,3908.4,3908.2,0.1272]
[1760680635694,0.4442,3908.4,3908.1,0.001]
[1760680635695,0.7608,3908.2,3908.1,0.001]
[1760680635859,1.5296025,3908.2,3908.1,0.001]
[1760680636060,1.9738025,3908.2,3908.1,0.001]
[1760680637264,6.26052518,3908.2,3908.1,0.001]
[1760680637924,19.30913918,3908.2,3908.1,0.001]
[1760680638238,11.41969718,3908.2,3908.1,0.001]
[1760680638403,16.48103215,3908.1,3908.0,0.001]
[1760680638609,23.59691302,3908.1,3908.0,0.001]
[1760680638810,38.74684902,3908.1,3908.0,0.001]
[1760680639419,47.397892,3908.1,3908.0,0.001]
[1760680641532,47.79941099,3908.1,3908.0,0.001]
[1760680642562,31.86653808,3908.1,3908.0,0.001]
[1760680642737,34.42532623,3908.1,3908.0,0.001]
[1760680642938,47.79941099,3908.1,3908.0,0.001]
[1760680644665,54.26941099,3908.1,3908.0,0.001]
[1760680647471,54.37205391,3908.1,3908.0,0.001]
[1760680648339,40.99796915,3908.1,3908.0,0.001]
[1760680652043,40.59645016,3908.1,3908.0,0.001]
[1760680655056,40.99794567,3908.1,3908.0,0.001]
[1760680656099,40.89530275,3908.1,3908.0,0.001]
[1760680656508,40.99793856,3908.1,3908.0,0.001]
[1760680657891,54.37202332,3908.1,3908.0,0.001]
[1760680658933,54.37402332,3908.1,3908.0,0.001]
[1760680659424,46.27115358,3908.1,3908.0,0.001]
[1760680660209,42.84433677,3908.1,3908.0,0.001]
[1760680660524,41.77748277,3908.1,3908.0,0.001]
[1760680660720,41.00822577,3908.1,3908.0,0.001]
[1760680660934,39.46903877,3908.1,3908.0,0.001]
[1760680661440,39.87118477,3908.1,3908.0,0.001]
[1760680661591,39.15548677,3908.1,3908.0,0.001]
[1760680662405,39.11749377,3908.1,3908.0,0.001]
[1760680662828,10.99433292,3908.1,3908.0,0.001]
[1760680663032,10.99433292,3908.1,3908.0,0.2073]
[1760680663033,6.87349383,3908.1,3908.0,0.2073]
[1760680663202,7.50709383,3908.1,3908.0,0.001]
[1760680663614,19.96611398,3908.1,3908.0,0.001]
[1760680663941,22.99521624,3908.1,3908.0,0.001]
[1760680664126,14.76093824,3908.1,3908.0,0.001]
[1760680664435,18.25681324,3908.1,3908.0,0.001]
[1760680664930,24.88774924,3908.1,3908.0,0.001]
[1760680665841,13.03293824,3908.1,3908.0,0.001]
[1760680666004,28.77098024,3908.1,3908.0,0.001]
[1760680666532,25.27469124,3908.1,3908.0,0.001]
[1760680666918,26.38528524,3908.1,3908.0,0.001]
[1760680667847,32.71560477,3908.1,3908.0,0.001]
[1760680668001,27.44903537,3908.1,3908.0,0.001]
[1760680668206,21.77632484,3908.1,3908.0,0.001]
[1760680668410,14.17925009,3908.1,3908.0,0.001]
[1760680668729,19.97599868,3908.1,3908.0,0.001]
[1760680668909,35.44815468,3908.1,3908.0,0.001]
[1760680670045,35.44815468,3908.1,3907.7,0.001]
[1760680670046,3.19251911,3907.9,3907.7,0.001]
[1760680670216,13.84922559,3907.9,3907.7,0.001]
[1760680670540,16.78429537,3907.9,3907.7,0.001]
[1760680670736,9.24633437,3907.9,3907.7,0.001]
[1760680670946,18.57172137,3907.9,3907.7,0.001]
[1760680671127,18.16831637,3907.9,3907.7,0.001]
[1760680671336,15.69308237,3907.9,3907.7,0.001]
[1760680672037,34.09777537,3907.9,3907.7,0.001]
[1760680672428,29.86683259,3907.8,3907.7,0.001]
[1760680672631,29.86683259,3907.8,3907.4,0.001]
[1760680672632,0.6336,3907.6,3907.4,0.001]
[1760680672811,40.73152329,3907.5,3907.4,0.001]
[1760680673127,42.47041559,3907.5,3907.4,0.001]
[1760680673330,40.76738468,3907.5,3907.4,0.001]
[1760680673528,16.57110941,3907.5,3907.4,0.001]
[1760680673837,17.02480941,3907.5,3907.4,0.001]
[1760680674037,21.81274941,3907.5,3907.4,0.001]
[1760680674222,17.68680941,3907.5,3907.4,0.001]
[1760680674584,17.23310941,3907.5,3907.4,0.001]
[1760680675026,37.96729541,3907.5,3907.4,0.001]
[1760680675425,36.23237141,3907.5,3907.4,0.001]
[1760680675925,35.26025141,3907.5,3907.4,0.001]
[1760680676250,34.29288241,3907.5,3907.4,0.001]
[1760680676447,28.19311841,3907.5,3907.4,0.001]
[1760680676635,26.62238941,3907.5,3907.4,0.001]
[1760680676946,35.44956041,3907.5,3907.4,0.001]
[1760680677947,34.70710241,3907.5,3907.4,0.001]
[1760680678969,34.70710241,3907.5,3906.6,0.001]
[1760680678970,24.2000276,3906.8,3906.6,0.001]
[1760680679148,27.9658966,3906.8,3906.6,0.001]
[1760680679334,28.4195966,3906.8,3906.6,0.001]
[1760680679536,28.52227562,3906.8,3906.6,0.001]
[1760680679731,28.52227562,3906.8,3906.1,0.001]
[1760680679732,3.19350169,3906.4,3906.1,0.001]
[1760680680050,11.29730152,3906.4,3906.1,0.001]
[1760680680234,8.03431053,3906.4,3906.1,0.001]
[1760680680633,8.03431053,3906.4,3906.1,0.2073]
[1760680680883,8.03431053,3906.4,3906.1,0.001]
[1760680682089,8.03431053,3906.4,3906.3,0.2073]
[1760680682840,8.03431053,3906.4,3906.3,0.001]
[1760680683568,8.43592383,3906.4,3906.3,0.001]
[1760680686152,10.53488483,3906.4,3906.3,0.001]
[1760680686682,8.43592383,3906.4,3906.3,0.001]
[1760680687658,11.05692383,3906.4,3906.3,0.001]
[1760680688078,10.99582552,3906.4,3906.3,0.001]
[1760680688278,38.67521543,3906.4,3906.3,0.001]
[1760680688482,38.71610213,3906.4,3906.3,0.001]
[1760680689086,45.18610213,3906.4,3906.3,0.001]
[1760680689293,45.2887793,3906.4,3906.3,0.001]
[1760680690056,42.28637761,3906.4,3906.3,0.001]
[1760680690261,30.81871861,3906.4,3906.3,0.001]
[1760680690490,29.4057087,3906.4,3906.3,0.001]
[1760680690690,31.86293322,3906.4,3906.3,0.001]
[1760680691158,33.20818822,3906.4,3906.3,0.001]
[1760680691359,33.65068822,3906.4,3906.3,0.001]
[1760680691861,34.0523216,3906.4,3906.3,0.001]
[1760680692056,15.07041164,3906.4,3906.3,0.001]
[1760680692397,26.43906986,3906.4,3906.3,0.001]
[1760680692899,17.40610017,3906.4,3906.3,0.001]
[1760680693084,17.94290491,3906.4,3906.3,0.001]
[1760680693286,26.6395576,3906.4,3906.3,0.001]
[1760680693486,24.07965591,3906.4,3906.3,0.001]
[1760680693678,27.82914391,3906.4,3906.3,0.001]
[1760680693880,27.49218391,3906.4,3906.3,0.001]
[1760680694291,26.82092491,3906.4,3906.3,0.001]
[1760680694608,30.3005783,3906.4,3906.3,0.001]
[1760680694765,27.29817661,3906.4,3906.3,0.001]
[1760680694965,29.8580783,3906.4,3906.3,0.001]
[1760680695162,44.2094773,3906.4,3906.3,0.001]
[1760680695901,44.6519773,3906.4,3906.3,0.001]
[1760680696598,32.2294373,3906.4,3906.3,0.001]
[1760680697208,44.6519773,3906.4,3906.3,0.001]
[1760680697382,41.2122583,3906.4,3906.3,0.001]
[1760680698310,44.6519773,3906.4,3906.3,0.001]
[1760680698912,44.75465975,3906.4,3906.3,0.001]
[1760680699472,44.35302637,3906.4,3906.3,0.001]
[1760680700083,29.46001276,3906.2,3906.1,0.001]
[1760680700272,31.18801276,3906.2,3906.1,0.001]
[1760680700485,31.63051276,3906.2,3906.1,0.001]
[1760680701105,31.73320021,3906.2,3906.1,0.001]
[1760680701593,25.03702973,3906.2,3906.1,0.001]
[1760680701824,27.53718599,3906.2,3906.1,0.001]
[1760680702007,34.00718599,3906.2,3906.1,0.001]
[1760680702424,47.50383799,3906.2,3906.1,0.001]
[1760680702825,46.63584099,3906.2,3906.1,0.001]
[1760680703423,50.16855399,3906.2,3906.1,0.001]
[1760680703903,31.18814385,3906.0,3905.9,0.001]
[1760680704104,40.15830011,3906.0,3905.9,0.001]
[1760680704421,40.63080011,3906.0,3905.9,0.001]
[1760680704634,41.13520643,3906.0,3905.9,0.001]
[1760680705921,32.71682043,3906.0,3905.9,0.001]
[1760680706121,29.46112843,3906.0,3905.9,0.001]
[1760680706492,33.71553843,3906.0,3905.9,0.001]
[1760680707003,20.49059543,3906.0,3905.9,0.001]
[1760680707334,20.01809543,3906.0,3905.9,0.001]
[1760680707530,26.57838843,3906.0,3905.9,0.001]
[1760680707719,25.18565243,3906.0,3905.9,0.001]
[1760680708536,27.68449774,3906.0,3905.9,0.001]
[1760680709434,14.46711574,3906.0,3905.9,0.001]
[1760680709749,39.16091674,3906.0,3905.9,0.001]
[1760680710512,40.73349574,3906.0,3905.9,0.001]
[1760680711435,14.46711574,3906.0,3905.9,0.001]
[1760680711640,40.73349574,3906.0,3905.9,0.001]
[1760680711838,41.13520652,3906.0,3905.9,0.001]
[1760680712048,31.18840605,3905.6,3905.1,0.2073]
[1760680712219,31.18840605,3905.6,3905.1,0.001]
[1760680712220,26.89998,3905.2,3905.1,0.001]
[1760680712546,4.92235388,3905.1,3905.0,0.001]
[1760680712744,17.5021873,3905.1,3905.0,0.001]
[1760680712914,18.20379127,3905.1,3905.0,0.001]
[1760680713115,18.81189988,3905.1,3905.0,0.001]
[1760680713631,24.18285788,3905.1,3905.0,0.001]
[1760680714210,8.64706788,3905.1,3905.0,0.001]
[1760680714720,17.62390564,3905.1,3905.0,0.001]
[1760680715132,17.62390564,3905.1,3903.3,0.0008]
[1760680715133,0.6336,3903.9,3903.8,0.2063]
[1760680715452,15.75338904,3903.9,3903.8,0.2063]
[1760680715659,15.72136978,3903.9,3903.8,0.2063]
[1760680715849,16.89375843,3903.9,3903.8,0.2063]
[1760680716067,16.89375843,3903.9,3903.5,0.2063]
[1760680716068,2.3616,3903.6,3903.5,0.2063]
[1760680716265,26.13795138,3903.6,3903.5,0.2063]
[1760680716463,26.10592966,3903.6,3903.5,0.2063]
[1760680717172,26.10592966,3903.6,3903.5,0.4126]
[1760680717173,2.3616,3903.6,3903.5,0.4126]
[1760680717462,7.22824945,3903.6,3903.5,0.4126]
[1760680717625,7.22824945,3903.6,3903.5,0.2063]
[1760680718261,7.22824945,3903.6,3903.5,0.4126]
[1760680720130,2.49565069,3903.6,3903.5,0.4126]
[1760680720342,12.35967632,3903.6,3903.5,0.2063]
[1760680720567,12.35967632,3903.6,3903.3,0.0008]
[1760680720568,0.6336,3903.4,3903.3,0.0008]
[1760680720735,1.86205069,3903.6,3903.3,0.0008]
[1760680721063,0.66562254,3903.5,3903.3,0.2071]
[1760680721262,0.66562254,3903.5,3903.4,0.2063]
[1760680721436,0.66562254,3903.5,3903.3,0.0008]
[1760680721437,1.25903907,3903.5,3903.3,0.0008]
[1760680721632,0.66562254,3903.5,3903.3,0.0008]
[1760680722767,0.66562254,3903.5,3902.9,0.0115]
[1760680722935,0.66562254,3903.5,3902.8,2.56224675]
[1760680722936,0.66562254,3903.5,3902.8,2.56221082]
[1760680723139,0.03202254,3903.5,3902.9,2.56215571]
[1760680723481,0.03202254,3903.5,3902.1,2.56272263]
[1760680723482,0.13405069,3903.6,3902.3,2.56258914]
[1760680723690,0.13405069,3903.6,3903.1,2.56200911]
[1760680723870,0.13405069,3903.6,3903.1,2.56204941]
[1760680723871,0.40191113,3903.3,3903.1,2.56204941]
[1760680724048,0.40191113,3903.3,3902.4,0.51253118]
[1760680724253,0.032025,3903.2,3902.9,2.56217115]
[1760680724454,0.40191113,3903.3,3903.0,2.56211327]
[1760680724680,0.032025,3903.2,3902.5,2.5624082]
[1760680724870,0.032025,3903.2,3902.7,2.56230784]
[1760680725063,0.032025,3903.2,3902.8,2.56224561]
[1760680725675,0.032025,3903.2,3902.9,2.56219714]
[1760680726259,0.032025,3903.2,3901.6,2.56305105]
[1760680726464,0.032025,3903.2,3901.7,0.2563051]
[1760680726688,0.032025,3903.2,3901.8,2.56291967]
[1760680726871,0.40194328,3902.9,3902.5,2.56240771]
[1760680727386,0.40194328,3902.9,3902.6,2.56238333]
[1760680727557,0.40194328,3902.9,3901.7,0.2563051]
[1760680728075,0.40194328,3902.9,3902.6,2.56236291]
[1760680728585,5.098271,3903.2,3902.6,2.56236291]
[1760680728799,0.53317153,3903.4,3902.7,2.5623256]
[1760680728999,0.66562418,3903.3,3902.5,0.001]
[1760680729359,0.6336,3903.3,3902.8,2.56223385]
[1760680729669,0.6336,3903.3,3902.9,2.56218326]
[1760680730068,0.6336,3903.3,3902.8,2.56225475]
[1760680730387,0.128,3902.9,3902.8,2.56225475]
[1760680731020,0.6336,3903.5,3902.6,2.5623943]
[1760680731219,0.6336,3903.5,3902.9,2.56213282]
[1760680731514,0.6336,3903.5,3903.0,2.56211973]
[1760680733512,0.6336,3903.5,3902.9,2.56219092]
[1760680733717,1.25781491,3903.5,3902.9,2.56219092]
[1760680734294,0.90483695,3903.4,3902.7,2.56227179]
[1760680734495,0.43393695,3903.4,3902.8,2.5622495]
[1760680734694,0.43393695,3903.4,3902.5,2.56340395]
[1760680735021,1.28132351,3903.4,3902.5,0.001]
[1760680735195,1.28132351,3903.4,3902.5,2.56340435]
[1760680735377,1.28132351,3903.4,3902.5,0.001]
[1760680735584,1.28132351,3903.4,3902.6,2.5623943]
[1760680735783,1.28132351,3903.4,3902.7,2.5623245]
[1760680737086,1.28132351,3903.4,3902.6,2.56238836]
[1760680737281,1.28132351,3903.4,3902.7,2.5623166]
[1760680737788,0.28358891,3903.3,3902.5,0.001]
[1760680738002,0.032025,3903.2,3902.5,0.001]
[1760680738324,0.032025,3903.2,3902.6,2.56238676]
[1760680738547,0.032025,3903.2,3902.7,2.5623157]
[1760680738836,0.502925,3903.2,3902.7,2.5623157]
[1760680739139,0.502925,3903.2,3902.5,0.001]
[1760680739304,0.66026788,3903.2,3902.6,2.56237896]
[1760680739504,0.66026788,3903.2,3902.5,2.56344415]
[1760680739734,0.66026788,3903.2,3902.6,2.56238364]
[1760680739927,0.66026788,3903.2,3902.5,2.56341807]
[1760680740234,0.66026788,3903.2,3902.5,0.001]
[1760680740235,0.18936788,3903.2,3902.5,0.001]
[1760680740436,3.282664,3903.0,3902.5,0.001]
[1760680740730,0.03202746,3902.9,3902.5,0.001]
[1760680741136,0.128,3902.7,3902.5,0.001]
[1760680741437,0.03202992,3902.6,3902.5,0.001]
[1760680742209,14.39288515,3902.6,3902.5,0.001]
[1760680742525,15.50510075,3902.6,3902.5,0.001]
[1760680742726,10.36547552,3902.6,3902.5,0.001]
[1760680742930,3.82337852,3902.6,3902.5,0.001]
[1760680744219,2.76358851,3902.6,3902.5,0.001]
[1760680745429,3.21888851,3902.6,3902.5,0.001]
[1760680745838,2.76358851,3902.6,3902.5,0.001]
[1760680747422,2.79561843,3902.6,3902.5,0.001]
[1760680747628,3.25091843,3902.6,3902.5,0.001]
[1760680747946,7.49391576,3902.6,3902.5,0.001]
[1760680748150,4.02802184,3902.6,3902.5,0.001]
[1760680748349,6.71498576,3902.6,3902.5,0.001]
[1760680748551,4.02802184,3902.6,3902.5,0.001]
[1760680748753,4.06005176,3902.6,3902.5,0.001]
[1760680749665,3.60475176,3902.6,3902.5,0.001]
[1760680749861,2.79561843,3902.6,3902.5,0.001]
[1760680750042,3.25091843,3902.6,3902.5,0.001]
[1760680750245,2.76358851,3902.6,3902.5,0.001]
[1760680751156,2.79561843,3902.6,3902.5,0.001]
[1760680751564,2.39362992,3902.6,3902.5,0.001]
[1760680751967,0.0320291,3902.7,3902.6,2.56235853]
[1760680752167,0.77066539,3903.2,3902.6,0.51259089]
[1760680752333,0.128,3902.8,3902.7,2.56232864]
[1760680752867,0.128,3903.3,3903.1,2.56204871]
[1760680753069,0.128,3903.3,3902.6,0.128]
[1760680753268,4.73765038,3902.9,3902.5,0.001]
[1760680753470,0.03202828,3902.8,3902.5,0.001]
[1760680753774,1.728,3903.4,3903.0,2.56213169]
[1760680754067,0.27210138,3903.6,3902.5,0.001]
[1760680754068,0.4019268,3903.3,3902.5,0.001]
[1760680754365,0.4019268,3903.3,3903.1,2.56201834]
[1760680754564,0.43395098,3903.3,3903.1,2.56201834]
[1760680755063,0.43395098,3903.3,3903.2,2.5620004]
[1760680755373,0.4019268,3903.3,3903.2,2.5620004]
[1760680755546,0.002,3903.6,3903.5,2.5618035]
[1760680757274,0.002,3903.6,3903.5,3.074177]
[1760680758535,0.002,3903.6,3903.5,2.5618035]
[1760680759687,0.002,3903.6,3902.5,0.25735292]
[1760680759849,0.002,3903.6,3903.4,2.56181004]
[1760680760175,0.002,3903.6,3903.5,2.5618035]
[1760680763380,0.40383317,3903.6,3903.5,2.5618035]
[1760680764969,0.40383317,3903.6,3903.5,3.08697688]
[1760680765476,0.40383317,3903.6,3903.5,3.21497688]
[1760680765772,0.4438,3903.6,3903.4,2.56185995]
[1760680766471,0.002,3903.6,3903.4,2.56185995]
[1760680766679,0.002,3903.6,3903.5,2.5618035]
[1760680775159,0.4438,3903.6,3903.5,2.5618035]
[1760680775489,0.5718,3903.6,3903.3,2.56192266]
[1760680775706,0.4418,3903.5,3903.3,2.56192266]
[1760680775991,0.4418,3903.5,3902.9,0.128]
[1760680776223,0.4418,3903.4,3903.0,2.56213169]
[1760680776428,0.13,3903.6,3902.9,2.56218377]
[1760680776429,0.47382418,3903.3,3902.9,2.56218377]
[1760680776713,0.4418,3903.2,3902.8,2.56225701]
[1760680776927,0.4418,3903.1,3902.7,0.128]
[1760680777222,0.237,3903.0,3902.7,0.128]
[1760680777391,0.6788,3903.0,3902.7,2.69031416]
[1760680777590,0.47382746,3902.9,3902.5,0.001]
[1760680778100,0.4418,3902.8,3902.5,0.001]
[1760680778305,0.0320291,3902.7,3902.5,0.001]
[1760680778504,0.03202992,3902.6,3902.5,0.001]
[1760680778709,0.47382992,3902.6,3902.5,0.001]
[1760680779812,1.10742992,3902.6,3902.5,0.001]
[1760680780002,9.35104641,3902.6,3902.5,0.001]
[1760680780206,27.59921449,3902.6,3902.5,0.001]
[1760680780379,3.36852449,3902.6,3902.5,0.001]
[1760680780580,2.1698,3902.6,3902.5,0.001]
[1760680781696,2.20182992,3902.6,3902.5,0.001]
[1760680782810,2.6038343,3902.6,3902.5,0.001]
[1760680783008,0.8758343,3902.6,3902.5,0.001]
[1760680783989,2.6038343,3902.6,3902.5,0.001]
[1760680784314,0.40200438,3902.6,3902.5,2.56345996]
[1760680784895,0.40200438,3902.6,3902.5,0.001]
[1760680785092,0.40200438,3902.6,3902.5,2.56345996]
[1760680785299,0.84380438,3902.6,3902.5,0.001]
[1760680785615,0.40200438,3902.6,3902.5,2.56345996]
[1760680788424,0.26902664,3903.0,3902.5,2.56345996]
[1760680788625,0.81202811,3902.9,3902.5,0.001]
[1760680788925,0.03202582,3903.1,3902.6,2.56239231]
[1760680789295,0.03202582,3903.1,3902.5,0.001]
[1760680789296,0.4418,3903.0,3902.7,2.56230371]
[1760680789625,0.03202582,3903.1,3902.8,2.5622174]
[1760680789923,0.03202582,3903.1,3902.5,0.001]
[1760680790092,0.40195751,3903.2,3903.0,2.56212295]
[1760680790297,0.002,3903.4,3903.0,2.56208028]
[1760680790625,0.128,3903.3,3902.6,0.128]
[1760680790925,0.60182418,3903.3,3902.9,2.56219506]
[1760680791131,0.16002418,3903.3,3903.0,2.56209079]
[1760680791331,0.16002418,3903.3,3902.6,0.128]
[1760680791332,0.128,3903.3,3903.2,2.5620004]
[1760680792031,0.128,3903.3,3902.8,2.56222854]
[1760680792233,0.4384,3903.2,3902.6,0.128]
[1760680792405,0.4384,3903.2,3902.8,2.56226139]
[1760680792607,0.128,3903.3,3902.7,2.56230968]
[1760680792608,0.4384,3903.1,3902.7,2.56230968]
[1760680792807,0.4384,3903.1,3903.0,2.56213169]
[1760680793029,0.128,3903.3,3903.1,2.56204733]
[1760680793338,0.128,3903.3,3903.2,2.5620004]
[1760680793942,0.002,3903.4,3903.3,2.56193477]
[1760680801630,0.002,3903.4,3903.3,3.08719278]
[1760680801830,0.002,3903.4,3903.3,3.07433265]
[1760680802563,0.002,3903.4,3903.3,3.08719278]
[1760680802763,0.002,3903.4,3903.3,3.07433265]
[1760680802968,0.002,3903.4,3903.3,3.08719278]
[1760680803172,0.002,3903.4,3903.3,3.07433265]
[1760680803959,0.002,3903.4,3903.3,3.20233265]
[1760680805560,0.002,3903.4,3903.3,3.21519278]
[1760680805757,0.002,3903.4,3903.3,3.20233265]
[1760680806069,0.002,3903.4,3903.3,3.21519278]
[1760680806296,0.002,3903.4,3903.3,3.20233265]
[1760680810915,0.002,3903.8,3903.7,2.56167225]
[1760680811117,0.002,3904.2,3904.1,8.24286428]
[1760680811265,0.002,3904.2,3904.1,2.56140979]
[1760680811459,0.4656,3904.2,3904.1,2.68940979]
[1760680811782,0.002,3904.2,3904.1,2.68940979]
[1760680813004,0.002,3904.2,3904.1,4.41740979]
[1760680813202,0.002,3904.2,3904.1,5.31119707]
[1760680813972,0.002,3905.0,3904.9,2.56088504]
[1760680816583,0.002,3905.0,3904.1,1.02178728]
[1760680816783,0.002,3905.0,3903.9,0.6336]
[1760680816784,0.002,3905.0,3904.9,2.56088504]
[1760680817290,0.4656,3905.0,3904.9,2.56088504]
[1760680819208,0.4656,3905.0,3902.1,1.155]
[1760680819409,0.235,3904.9,3904.6,2.5610749]
[1760680819610,0.235,3904.9,3904.5,2.56109107]
[1760680819811,0.4636,3904.8,3903.9,2.56153994]
[1760680819982,0.4636,3904.8,3903.4,1.728]
[1760680819983,0.235,3904.9,3904.8,2.56095062]
[1760680820322,0.235,3904.9,3902.4,0.62158872]
[1760680820609,5.68145449,3904.2,3902.7,2.56230743]
[1760680820811,5.68145449,3904.2,3903.3,2.56188001]
[1760680821011,0.4636,3904.1,3904.0,2.56141913]